lending/lending_fUSD_20240908
["ID","MTS","AMOUNT","RATE_DAILY","PERIOD"]
[337572656,1725829918408,-150.0,0.00046775,120]
[337572657,1725829918434,-50000.0,0.00047,47]
[337572658,1725829918457,-165.78291089,0.00047,60]
[337572659,1725829918479,-165.13025345,0.00047,45]
[337572660,1725829918504,-2000.5957796,0.00047,120]
[337572661,1725829918527,-7491.19463338,0.00047044,120]
[337572662,1725829918551,-392.543,0.00047271,79]
[337572663,1725829918574,-1008.54,0.0004729,99]
[337572664,1725829918598,-5722.82,0.00047397,120]
[337572665,1725829918623,-151.0,0.00047753,120]
[337572666,1725829918646,-399.23228259,0.000478,120]
[337572667,1725829918671,-50000.0,0.00048,48]
[337572668,1725829918694,-187.34372859,0.00048,60]
[337572669,1725829918718,-36635.92235253,0.00048,120]
[337572670,1725829980885,750.0,0.00011,2]
[337572671,1725830014117,500.0,0.000255,120]
[337572672,1725830067366,174.54,0.00010762,2]
[337572676,1725830212241,717.04,0.00011489,2]
[337572677,1725830247912,158.44,0.00010959,2]
[337572939,1725830666995,174.54,0.0001053,2]
[337572940,1725830729973,579.94515437,0.000101,2]
[337572941,1725830751871,26780.40516484,0.00010988,2]
[337572942,1725830752256,168.67,0.00010959,2]
[337572943,1725830755270,21750.1881599,6.94e-05,2]
[337572944,1725830762375,160.78168142,9e-05,2]
[337572945,1725830785097,681.18,0.00011168,2]
[337572946,1725830830694,375.08,0.00010959,2]
[337572947,1725830833267,500.0,0.000123,2]
[337572948,1725830879441,12674.97185203,0.0001,2]
[337572949,1725830883535,7994.10628472,0.00010999,2]
[337572997,1725830893460,14942.2530647,0.000109,2]
[337573058,1725830917657,211.43622573,0.0001,2]
[337573116,1725831031616,-773.72014324,0.00012817,2]
[337573117,1725831031626,-324.25968427,0.000129,2]
[337573118,1725831031635,-724.48613987,0.000129,2]
[337573119,1725831031645,-500.0,0.00012973,2]
[337573120,1725831031655,-160.25665225,0.00012973,2]
[337573121,1725831031664,-112.73177438,0.00012973,2]
[337573122,1725831031676,-387.26822562,0.00012973,2]
[337573123,1725831031685,-271.30458156,0.00012973,2]
[337573124,1725831031694,-151.8,0.0001299,2]
[337573125,1725831031704,-151.8,0.0001299,2]
[337573126,1725831031713,-151.8,0.0001299,2]
[337573127,1725831031723,-151.8,0.0001299,2]
[337573128,1725831031732,-151.8,0.0001299,2]
[337573129,1725831031741,-151.8,0.0001299,2]
[337573130,1725831031751,-151.8,0.0001299,2]
[337573131,1725831031760,-151.8,0.0001299,2]
[337573132,1725831031770,-151.8,0.0001299,2]
[337573133,1725831031780,-151.8,0.0001299,2]
[337573134,1725831031790,-151.8,0.0001299,2]
[337573135,1725831031799,-151.8,0.0001299,2]
[337573136,1725831031809,-151.8,0.0001299,2]
[337573137,1725831031818,-151.8,0.0001299,2]
[337573138,1725831031828,-151.8,0.0001299,2]
[337573139,1725831031838,-500.0,0.00012999,2]
[337573140,1725831031847,-500.0,0.00012999,2]
[337573141,1725831031857,-500.0,0.00012999,2]
[337573142,1725831031867,-174.44382131,0.00012999,2]
[337573143,1725831031876,-500.0,0.00012999,2]
[337573144,1725831031885,-500.0,0.00012999,2]
[337573145,1725831031895,-310.39246735,0.00012999,2]
[337573146,1725831031904,-150.0,0.00012999,2]
[337573147,1725831031914,-800.0,0.00013,2]
[337573148,1725831031924,-3303.87752075,0.00013,2]
[337573149,1725831031935,-682.49820459,0.00013,2]
[337573150,1725831031947,-544.0998858,0.00013,2]
[337573151,1725831031958,-942.89298596,0.00013,2]
[337573152,1725831031970,-329.33303263,0.00013,2]
[337573153,1725831031984,-284.51815666,0.00013,2]
[337573197,1725831037586,-1058.69852512,0.000129,2]
[337573198,1725831037595,-19.60518829,0.000129,2]
[337573199,1725831037607,-475.14527595,0.000129,2]
[337573200,1725831037619,-1150.17843482,0.000129,2]
[337573201,1725831037648,-264.24,0.000129,2]
[337573202,1725831037660,-629.69990298,0.000129,2]
[337573203,1725831037670,-3763.21315111,0.00013,2]
[337573204,1725831037681,-1698.02186945,0.00013,2]
[337573205,1725831037709,-540.65357155,0.00013,2]
[337573206,1725831037769,-31233.16703594,0.00013,2]
[337573207,1725831037780,-1055.92857491,0.00013,2]
[337573208,1725831037792,-279.36,0.00013,2]
[337573209,1725831037804,-939.04448136,0.00013,2]
[337573210,1725831037814,-279181.92421617,0.00013,2]
[337573215,1725831038176,-1364.83123837,0.00013,2]
[337573216,1725831038187,-27480.72739471,0.00013,2]
[337573217,1725831038198,-567.02253439,0.00013,2]
[337573218,1725831038209,-1051.74850456,0.00013,2]
[337573219,1725831038219,-1266.25068988,0.00013,2]
[337573220,1725831038230,-464.27999997,0.00013,2]
[337573221,1725831038241,-16386.08571444,0.00013,2]
[337573222,1725831038253,-18263.915,0.00013,2]
[337573223,1725831038264,-4461.84790807,0.00013,2]
[337573224,1725831038275,-5533.35431226,0.00013,2]
[337573225,1725831038286,-2650.05,0.00013,2]
[337573226,1725831038297,-1061.23770591,0.00013,2]
[337573227,1725831038307,-2930.11970509,0.00013,2]
[337573228,1725831038318,-2939.9999999,0.00013,2]
[337573229,1725831038329,-1291.525,0.00013,2]
[337573255,1725831039687,-27089.17785513,0.00013,2]
[337573256,1725831039698,-1518.24201,0.00013,2]
[337573257,1725831039709,-1363.68834929,0.00013,2]
[337573258,1725831039719,-2023.404,0.00013,2]
[337573259,1725831039731,-1453.28657307,0.00013,2]
[337573260,1725831039742,-5063.96244553,0.00013,2]
[337573261,1725831039753,-320.10297877,0.00013,2]
[337573263,1725831039764,-2320.16984239,0.00013,2]
[337573266,1725831039782,-3031.43850912,0.00013,2]
[337573269,1725831039799,-1785.82599457,0.00013,2]
[337573271,1725831039814,-727.40483639,0.00013,2]
[337573274,1725831039829,-19004.07780853,0.00013,2]
[337573276,1725831039846,-312.004999,0.00013,2]
[337573279,1725831039863,-359.58943198,0.00013,2]
[337573281,1725831039879,-643.23488832,0.00013,2]
[337573284,1725831039896,-407.31829927,0.00013,2]
[337573286,1725831039912,-19357.1500304,0.00013,2]
[337573289,1725831039927,-18527.41837375,0.00013,2]
[337573292,1725831039943,-1031.00172718,0.00013,2]
[337573294,1725831039963,-4958741.25550192,0.00013,2]
[337573299,1725831039995,-555.40775296,0.00013,2]
[337573302,1725831040010,-1606.24854335,0.00013,2]
[337573304,1725831040028,-2838.91073766,0.00013,2]
[337573307,1725831040045,-837.74750378,0.00013,2]
[337573309,1725831040059,-140831.78781609,0.00013,2]
[337573312,1725831040071,-7537.21765929,0.00013,2]
[337573314,1725831040086,-188344.19954538,0.00013,2]
[337573319,1725831040121,-4963.64401249,0.00013,2]
[337573321,1725831040135,-338.0226125,0.00013,2]
[337573323,1725831040148,-5154.21964599,0.00013,2]
[337573326,1725831040169,-4285.81638443,0.00013,2]
[337573329,1725831040183,-535.85788251,0.00013,2]
[337573331,1725831040197,-1534.61932229,0.00013,2]
[337573333,1725831040214,-1952.46287706,0.00013,2]
[337573336,1725831040230,-10600.2,0.00013,2]
[337573338,1725831040245,-587.72819476,0.00013,2]
[337573341,1725831040261,-2658.3,0.00013,2]
[337573344,1725831040276,-1086.34670665,0.00013,2]
[337573346,1725831040291,-12943.95357358,0.00013,2]
[337573349,1725831040305,-1340.90112219,0.00013,2]
[337573351,1725831040320,-11427.13151269,0.00013,2]
[337573354,1725831040334,-2837.74696614,0.00013,2]
[337573357,1725831040350,-1818.9,0.00013,2]
[337573359,1725831040365,-1467.09560453,0.00013,2]
[337573571,1725831042529,-34105.91719769,0.00013,2]
[337573577,1725831042589,-1058.55765,0.00013,2]
[337573580,1725831042604,-1218.04691638,0.00013,2]
[337573583,1725831042622,-5242.74940921,0.00013,2]
[337573585,1725831042636,-175726.7728549,0.00013,2]
[337573588,1725831042653,-532.35328105,0.00013,2]
[337573590,1725831042667,-25322.18107149,0.00013,2]
[337573593,1725831042683,-651.33802245,0.00013,2]
[337573596,1725831042698,-706.98079257,0.00013,2]
[337573598,1725831042714,-2939.32172658,0.00013,2]
[337573600,1725831042731,-4491.72001492,0.00013,2]
[337573603,1725831042746,-332.4976,0.00013,2]
[337573605,1725831042761,-5987.49401251,0.00013,2]
[337573608,1725831042775,-5971.9,0.00013,2]
[337573610,1725831042790,-682.39886699,0.00013,2]
[337573613,1725831042805,-10144.78112754,0.00013,2]
[337573615,1725831042820,-15384.0089053,0.00013,2]
[337573618,1725831042834,-1325.20799028,0.00013,2]
[337573620,1725831042850,-8457.3627112,0.00013,2]
[337573623,1725831042866,-370.19267968,0.00013,2]
[337573626,1725831042881,-585.395015,0.00013,2]
[337573628,1725831042896,-6654.157102,0.00013,2]
[337573631,1725831042910,-1738.02113,0.00013,2]
[337573633,1725831042925,-565.33092074,0.00013,2]
[337573636,1725831042941,-2627.76022133,0.00013,2]
[337573639,1725831042956,-1061.06,0.00013,2]
[337573641,1725831042971,-1201.87353666,0.00013,2]
[337573644,1725831042988,-361.01292754,0.00013,2]
[337573653,1725831043061,-218275.99999979,0.00013,2]
[337573701,1725831043547,-1232.8790104,0.00013,2]
[337573702,1725831043566,-330.5,0.00013,2]
[337573703,1725831043581,-39694.74607981,0.00013,2]
[337573704,1725831043595,-6855.90067227,0.00013,2]
[337573705,1725831043612,-781.874423,0.00013,2]
[337573706,1725831043626,-21986.27470492,0.00013,2]
[337573707,1725831043642,-10877.31968114,0.00013,2]
[337573708,1725831043658,-567.34824791,0.00013,2]
[337573710,1725831043672,-5983.9,0.00013,2]
[337573925,1725831045683,-2238.27476078,0.00013,2]
[337573928,1725831045698,-371.08009368,0.00013,2]
[337573930,1725831045712,-2630.82659408,0.00013,2]
[337573933,1725831045727,-765.67486631,0.00013,2]
[337573935,1725831045741,-324.95834368,0.00013,2]
[337573938,1725831045755,-45837.97606378,0.00013,2]
[337573940,1725831045769,-1644.15644672,0.00013,2]
[337573943,1725831045783,-2087.08,0.00013,2]
[337573945,1725831045797,-5236.13553603,0.00013,2]
[337573948,1725831045810,-373.17199998,0.00013,2]
[337573950,1725831045825,-335.281,0.00013,2]
[337573953,1725831045839,-1434.79165165,0.00013,2]
[337573955,1725831045854,-569.62893995,0.00013,2]
[337573957,1725831045872,-3194.03000004,0.00013,2]
[337573960,1725831045886,-746.22474826,0.00013,2]
[337573963,1725831045909,-3830.54195279,0.00013,2]
[337573966,1725831045923,-1865.23497668,0.00013,2]
[337573968,1725831045936,-4844.62804017,0.00013,2]
[337573971,1725831045949,-500.0,0.00013,2]
[337573973,1725831045962,-4717.75270174,0.00013,2]
[337573976,1725831045977,-501.75638862,0.00013,2]
[337573978,1725831045992,-8901.18086874,0.00013,2]
[337573981,1725831046008,-48751.96682396,0.00013,2]
[337573983,1725831046021,-6154.01807628,0.00013,2]
[337573986,1725831046034,-2457.38273895,0.00013,2]
[337573988,1725831046048,-6676.43119304,0.00013,2]
[337573991,1725831046064,-36599.9999949,0.00013,2]
[337573993,1725831046077,-1281.94968679,0.00013,2]
[337573996,1725831046092,-444.3350225,0.00013,2]
[337573998,1725831046105,-2049.27708235,0.00013,2]
[337574001,1725831046120,-2003.34760096,0.00013,2]
[337574003,1725831046133,-520.42458624,0.00013,2]
[337574006,1725831046146,-1499.90008,0.00013,2]
[337574008,1725831046162,-493.09011844,0.00013,2]
[337574010,1725831046177,-402.0,0.00013,2]
[337574013,1725831046191,-312.70621,0.00013,2]
[337574016,1725831046206,-1303.17693193,0.00013,2]
[337574018,1725831046219,-5285.28,0.00013,2]
[337574020,1725831046232,-23938.32502418,0.00013,2]
[337574026,1725831046278,-2180.99999999,0.00013,2]
[337574029,1725831046292,-1313.30504829,0.00013,2]
[337574031,1725831046308,-6653.2513662,0.00013,2]
[337574034,1725831046322,-3187.19048631,0.00013,2]
[337574036,1725831046335,-984.31139991,0.00013,2]
[337574441,1725831217672,250.0,0.00011859,2]
[337574442,1725831255550,493.55,0.00011869,2]
[337574443,1725831258672,174.54,9.495e-05,2]
[337574444,1725831274995,273.67,0.00011982,2]
[337574445,1725831293405,647.12,9.95e-05,2]
[337574446,1725831293614,647.12,0.00012214,2]
[337574447,1725831307669,250.0,0.00011868,2]
[337574449,1725831358108,228.71,0.00011889,2]
[337574450,1725831362419,397.29,0.00011889,2]
[337574451,1725831408671,5000.0,0.00028,120]
[337574452,1725831414407,23900.0,0.00011863,2]
[337574453,1725831429309,3000.0,0.00028,120]
[337574454,1725831449593,156.55,0.00011863,2]
[337574456,1725831463471,250.0,0.00011846,2]
[337574457,1725831474523,272.49,0.00011842,2]
[337574460,1725831540428,332.79,0.00011861,2]
[337574462,1725831634409,4175.13,0.00011857,2]
[337574463,1725831648803,1000.0,0.00011867,2]
[337574464,1725831660979,797.0,0.00011867,2]
[337574465,1725831666280,347.63,0.00011884,2]
[337574466,1725831685578,151.7,0.00012083,2]
[337574467,1725831685606,151.7,0.00012086,2]
[337574468,1725831685638,151.7,0.0001209,2]
[337574469,1725831685668,151.7,0.00012094,2]
[337574470,1725831685697,151.7,0.00012097,2]
[337574471,1725831685732,151.7,0.00012101,2]
[337574472,1725831685799,151.7,0.00012104,2]
[337574473,1725831686052,151.7,0.00012108,2]
[337574474,1725831686477,151.7,0.00012111,2]
[337574475,1725831686692,151.7,0.00012115,2]
[337574476,1725831686931,151.7,0.00012119,2]
[337574477,1725831687153,151.7,0.00012122,2]
[337574478,1725831687361,151.7,0.00012126,2]
[337574479,1725831687612,151.7,0.00012129,2]
[337574480,1725831687825,151.7,0.00012133,2]
[337574481,1725831688279,151.7,0.00012136,2]
[337574482,1725831688491,151.7,0.0001214,2]
[337574483,1725831688721,33.93241229,0.00012143,2]
[337574484,1725831688750,117.76758771,0.00012143,2]
[337574485,1725831733076,250.0,0.00012425,2]
[337574486,1725831776854,153.19,0.00012425,2]
[337574487,1725831785742,750.0,0.00011,2]
[337574488,1725831807169,582.4,0.00010471,2]
[337574489,1725831848319,151.64,0.00010959,2]
[337574490,1725831876320,250.0,0.00012351,2]
[337574491,1725831919830,150.0,0.00011688,2]
[337574492,1725831925439,401.53,0.00012328,2]
[337574493,1725832064436,2468.276377,0.00012444,2]
[337574494,1725832081397,274.76,0.00012492,2]
[337574495,1725832103578,-300.0,0.00012506,2]
[337574496,1725832103607,-8023.04647404,0.00012507,2]
[337574497,1725832103647,-8323.04647404,0.00012507,2]
[337574498,1725832103687,-3182.42281156,0.00012507,2]
[337574499,1725832128082,-4371.48424036,0.00012507,2]
[337574500,1725832128112,-155.30413884,0.00012602,2]
[337574501,1725832128141,-20.23945462,0.00012702,2]
[337574506,1725832231903,-410.4035168,0.00012663,2]
[337574507,1725832231913,-582.4,0.00012734,2]
[337574508,1725832231923,-2898.24649925,0.0001287,2]
[337574509,1725832231932,-741.09474359,0.00012899,2]
[337574510,1725832231941,-150.0,0.00012899,2]
[337574511,1725832231950,-300.0,0.00012899,2]
[337574512,1725832231960,-171.92175573,0.000129,2]
[337574513,1725832231969,-308.62257812,0.000129,2]
[337574514,1725832231978,-8153.3255,0.000129,2]
[337574515,1725832231987,-55429.5334,0.000129,2]
[337574516,1725832231997,-10099.4882,0.000129,2]
[337574517,1725832232006,-1000.0,0.000129,2]
[337574518,1725832232015,-1000.0,0.000129,2]
[337574519,1725832232024,-2500.0,0.000129,2]
[337574520,1725832232034,-2019.82292268,0.000129,2]
[337574521,1725832232043,-323.45769543,0.000129,2]
[337574522,1725832232052,-236.45909106,0.000129,2]
[337574523,1725832232062,-2263.71,0.00012973,2]
[337574524,1725832232072,-500.0,0.00012973,2]
[337574525,1725832232081,-151.62886511,0.00012986,2]
[337574526,1725832232091,-499.99,0.00012986,2]
[337574527,1725832232100,-151.91,0.0001299,2]
[337574528,1725832232110,-500.0,0.00012999,2]
[337574529,1725832232119,-285.23363794,0.00012999,2]
[337574530,1725832232129,-205.58153379,0.00012999,2]
[337574531,1725832232138,-180668.29602361,0.00013,2]
[337574532,1725832232150,-508.47198714,0.00013,2]
[337574533,1725832232164,-418.90217464,0.00013,2]
[337574534,1725832232176,-925.07724057,0.00013,2]
[337574535,1725832232191,-739.69628748,0.00013,2]
[337574536,1725832232202,-2528.22726703,0.00013,2]
[337574537,1725832232213,-593.55351269,0.00013,2]
[337574539,1725832232224,-341.42630098,0.00013,2]
[337574541,1725832232235,-24571.21223963,0.00013,2]
[337574543,1725832232247,-3509.06959599,0.00013,2]
[337574545,1725832232259,-966.03305,0.00013,2]
[337574547,1725832232270,-277.9595,0.00013,2]
[337574549,1725832232281,-1096.48125041,0.00013,2]
[337574550,1725832232292,-912.38802639,0.00013,2]
[337574552,1725832237774,-1327.18970887,0.00013,2]
[337574553,1725832237788,-25633.17903902,0.00013,2]
[337574554,1725832237802,-544.37084928,0.00013,2]
[337574555,1725832237913,-456.12071612,0.00013,2]
[337574556,1725832238100,-1804.2,0.00013,2]
[337574607,1725832240016,-35850.5197408,0.00013,2]
[337574608,1725832240127,-52076.10615691,0.00013,2]
[337574609,1725832240139,-273.32028,0.00013,2]
[337574666,1725832242804,-48690.94124141,0.00013,2]
[337574667,1725832242985,-550.37500001,0.00013,2]
[337574670,1725832243507,-534.33,0.00013,2]
[337574671,1725832243518,-879.29385289,0.00013,2]
[337574673,1725832245935,-626.35668439,0.00013,2]
[337574674,1725832245964,-312.486,0.00013,2]
[337574675,1725832245976,-7704.42628152,0.00013,2]
[337574676,1725832246069,-1756.79153754,0.00013,2]
[337574677,1725832246096,-549.8,0.00013,2]
[337574678,1725832246200,-329.968208,0.00013,2]
[337574679,1725832276845,567.05,0.00010765,2]
[337574680,1725832302636,844.67,0.00012713,2]
[337574681,1725832308248,882.6,0.00010959,2]
[337574682,1725832348367,150.0,0.00012592,2]
[337574683,1725832390655,250.0,0.00012727,2]
[337574684,1725832413565,250.0,0.00012419,2]
[337574685,1725832450962,500.0,0.000123,2]
[337574686,1725832463134,200.0,0.00012355,2]
[337574687,1725832553719,250.0,0.00012589,2]
[337574688,1725832572518,5683.94,0.00012578,2]
[337574689,1725832598403,150.0,0.00012711,2]
[337574690,1725832654708,171.37,0.0001236,2]
[337574691,1725832662444,100.37,0.0001236,2]
[337574692,1725832662471,379.9,0.0001236,2]
[337574693,1725832696388,154.14,0.00012401,2]
[337574695,1725832765307,538.69,0.00010482,2]
[337574697,1725832799860,398.5,0.00012349,2]
[337574698,1725832917774,250.0,0.00012399,2]
[337574699,1725833070097,405.79,0.00012437,2]
[337574702,1725833204293,156.55,0.00012115,2]
[337574703,1725833293338,-250.0,0.00012546,2]
[337574704,1725833293369,-274.76,0.00012575,2]
[337574705,1725833293395,-393.96658721,0.00012644,2]
[337574706,1725833293422,-150.0,0.00012722,2]
[337574707,1725833293452,-76.47848776,0.00012745,2]
[337574708,1725833304727,199.25,0.00012127,2]
[337574709,1725833341958,158.44,0.00010959,2]
[337574710,1725833342709,1000.0,0.00012238,2]
[337574715,1725833414200,250.0,0.00012201,2]
[337574736,1725833432041,-150.0,0.00012783,2]
[337574737,1725833432050,-164.6740758,0.00012813,2]
[337574738,1725833432060,-87.64506045,0.00012815,2]
[337574739,1725833432071,-62.35493955,0.00012815,2]
[337574740,1725833432081,-4162.26,0.00012815,2]
[337574741,1725833432091,-150.0,0.00012817,2]
[337574742,1725833432101,-272.3254622,0.00012864,2]
[337574743,1725833432110,-151.23679885,0.00012866,2]
[337574744,1725833432119,-150.0,0.00012869,2]
[337574745,1725833432128,-647.95999053,0.0001287,2]
[337574746,1725833432139,-1026.39824093,0.0001287,2]
[337574747,1725833432151,-1325.64176854,0.0001287,2]
[337574748,1725833432160,-3000.0,0.0001287,2]
[337574749,1725833432169,-729.26403916,0.0001287,2]
[337574750,1725833432180,-2270.73596084,0.0001287,2]
[337574751,1725833432189,-3000.0,0.0001287,2]
[337574752,1725833432198,-150.0,0.00012874,2]
[337574753,1725833432207,-499.99,0.00012874,2]
[337574754,1725833432217,-457.56651117,0.00012893,2]
[337574764,1725833433280,507.93,0.00010288,2]
[337574770,1725833438018,-507.93,0.00012552,2]
[337574771,1725833438028,-657.36358883,0.00012893,2]
[337574772,1725833438040,-1001.92167631,0.00012899,2]
[337574773,1725833438052,-527.806,0.00012899,2]
[337574774,1725833438062,-997.4084,0.000129,2]
[337574775,1725833438072,-701.8361,0.000129,2]
[337574776,1725833438083,-31652.77718723,0.000129,2]
[337574777,1725833438094,-6476.51821277,0.000129,2]
[337574778,1725833438106,-174.16952652,0.000129,2]
[337574779,1725833438115,-246.89806252,0.000129,2]
[337574780,1725833438124,-171.72522309,0.000129,2]
[337574781,1725833438134,-345.75,0.000129,2]
[337574782,1725833438143,-352.0441,0.000129,2]
[337574783,1725833438152,-632.1123669,0.000129,2]
[337574784,1725833438173,-367.8876331,0.000129,2]
[337574785,1725833438182,-160.36941333,0.000129,2]
[337574786,1725833438192,-157.63939404,0.000129,2]
[337574787,1725833438201,-132.87855953,0.000129,2]
[337574788,1725833438214,-190.57913588,0.000129,2]
[337574789,1725833438223,-150.0,0.00012919,2]
[337574790,1725833438233,-150.0,0.00012921,2]
[337574791,1725833438245,-150.0,0.0001293,2]
[337574792,1725833438255,-346.87830337,0.00012973,2]
[337574793,1725833438267,-153.12169663,0.00012973,2]
[337574794,1725833438276,-151.66,0.0001299,2]
[337574795,1725833438581,-173.53790255,0.00012993,2]
[337574796,1725833438620,-820.5999,0.00012993,2]
[337574797,1725833438632,-644.68559983,0.00012993,2]
[337574798,1725833438642,-1016.61,0.00012993,2]
[337574799,1725833438653,-1715.6453042,0.00012993,2]
[337574800,1725833440009,-711.3485025,0.00012993,2]
[337574801,1725833440022,-691.74484504,0.00012993,2]
[337574802,1725833440033,-9447.60497935,0.00012993,2]
[337574803,1725833440107,-3895.58825898,0.00012993,2]
[337574804,1725833440119,-1490.63916087,0.00012993,2]
[337574805,1725833440130,-81607.68428558,0.00012993,2]
[337574806,1725833440140,-15219.0272208,0.00012993,2]
[337574807,1725833440150,-199.30226172,0.00012999,2]
[337574808,1725833440160,-500.0,0.00012999,2]
[337574809,1725833440171,-500.0,0.00012999,2]
[337574810,1725833440180,-500.0,0.00012999,2]
[337574811,1725833440190,-500.0,0.00012999,2]
[337574812,1725833440199,-500.0,0.00012999,2]
[337574813,1725833440209,-222.61996023,0.00012999,2]
[337574814,1725833440219,-209562.26000792,0.00013,2]
[337574815,1725833440230,-511851.41415711,0.00013,2]
[337574816,1725833440243,-355.72425126,0.00013,2]
[337574817,1725833440254,-682.60523184,0.00013,2]
[337574818,1725833440266,-4807.45079669,0.00013,2]
[337574819,1725833440277,-22057.0,0.00013,2]
[337574820,1725833440290,-1061.90268039,0.00013,2]
[337574821,1725833440300,-820.542938,0.00013,2]
[337574822,1725833440312,-24912.89410395,0.00013,2]
[337574823,1725833440325,-1127.92651515,0.00013,2]
[337574824,1725833440336,-52314.45260923,0.00013,2]
[337574825,1725833440350,-436443.70906178,0.00013,2]
[337574826,1725833440361,-2561.10542528,0.00013,2]
[337574828,1725833440374,-2414.47484465,0.00013,2]
[337574829,1725833440385,-3810.54013007,0.00013,2]
[337574830,1725833440396,-10126.12732249,0.00013,2]
[337574831,1725833440407,-356.19588052,0.00013,2]
[337574838,1725833443022,-489.18296135,0.00013,2]
[337574839,1725833443036,-362.76485203,0.00013,2]
[337574840,1725833443048,-8739.00278943,0.00013,2]
[337574841,1725833443059,-491.59824037,0.00013,2]
[337574842,1725833443071,-5958.007393,0.00013,2]
[337574843,1725833443086,-3172.2818176,0.00013,2]
[337574844,1725833443100,-1668.02297108,0.00013,2]
[337574845,1725833443111,-12754.46134342,0.00013,2]
[337574846,1725833443134,-2467.1499995,0.00013,2]
[337574847,1725833443147,-2558.2578458,0.00013,2]
[337574848,1725833443160,-773.9542217,0.00013,2]
[337574849,1725833443172,-443.86505166,0.00013,2]
[337574850,1725833443184,-446.94052924,0.00013,2]
[337574851,1725833443196,-36096.65073552,0.00013,2]
[337574852,1725833443208,-574.40904998,0.00013,2]
[337574853,1725833443219,-1267.53629767,0.00013,2]
[337574854,1725833443231,-242992.47263957,0.00013,2]
[337574855,1725833443245,-1067.81353758,0.00013,2]
[337574856,1725833443256,-455.24917089,0.00013,2]
[337574857,1725833443268,-9012.60170715,0.00013,2]
[337574858,1725833443280,-9325.59797971,0.00013,2]
[337574859,1725833443293,-579.35,0.00013,2]
[337574860,1725833443304,-373.5132,0.00013,2]
[337574861,1725833443316,-368.46386686,0.00013,2]
[337574862,1725833443328,-530.05992504,0.00013,2]
[337574863,1725833443339,-2285.82171714,0.00013,2]
[337574872,1725833446036,-558.7,0.00013,2]
[337574873,1725833446627,-48736.35180826,0.00013,2]
[337574874,1725833446643,-125440.03344653,0.00013,2]
[337574875,1725833446654,-15553.24533523,0.00013,2]
[337574876,1725833446666,-7600.69049466,0.00013,2]
[337574877,1725833446678,-1639.13101304,0.00013,2]
[337574878,1725833446689,-1189.02918722,0.00013,2]
[337574879,1725833446700,-555.0,0.00013,2]
[337574880,1725833446711,-2026.77504163,0.00013,2]
[337574881,1725833446724,-253.9435862,0.00013,2]
[337574882,1725833446735,-889.35279502,0.00013,2]
[337574883,1725833446747,-360.08234564,0.00013,2]
[337574884,1725833446759,-2733.38035353,0.00013,2]
[337574885,1725833446770,-4994.61127258,0.00013,2]
[337574886,1725833446782,-588286.19110396,0.00013,2]
[337574887,1725833446793,-442876.17959202,0.00013,2]
[337574888,1725833446805,-629.89200498,0.00013,2]
[337574889,1725833446817,-914.18041574,0.00013,2]
[337574890,1725833446829,-1280.81103182,0.00013,2]
[337574891,1725833446841,-1325.98466,0.00013,2]
[337574892,1725833446853,-265.27161558,0.00013,2]
[337574893,1725833446865,-1246.58900404,0.00013,2]
[337574894,1725833446876,-508.5,0.00013,2]
[337574895,1725833446887,-581.02513369,0.00013,2]
[337574896,1725833446899,-904.64662748,0.00013,2]
[337574897,1725833446914,-1226.1823049,0.00013,2]